Cogmind - Beta 17 @@@ ROGUE MODE // 2026.07.04 @ 18:41:06 Player: kite Result: Self-destructed Performance ------------- Evolutions (2) 1000 Regions Visited (9) 1800 Robots Destroyed (125) 625 Value Destroyed (4019) 4019 Prototype IDs (25) 500 Alien Tech Used (0) 0 Bonus (1046) 1046 TOTAL SCORE: 8990 Bonus ------- High Alert Combat Kills 276 Follower Combat Kills 287 Entered Garrisons 200 Aligned with FarCom 300 Friendly Fire -17 Cogmind --------- Core Integrity 91/550 Matter 300/300 Energy 265/265 System Corruption 5% Temperature Cool (0) Movement Treading (155) Location -8/Materials Parts ------- > --- POWER (1) -------- Improved Ion Engine > --- PROPULSION (5) --- Light Treads (fused) Light Treads Advanced Treads (fused) Aluminum Leg Improved Carbon-fiber Leg > --- UTILITY (2) ------ Large Storage Unit Improved Light Armor Plating > --- WEAPON (3) ------- Mace Maul Katana > --- INVENTORY (15) --- Improved Aluminum Leg Titanium Leg Improved Carbon-fiber Leg Structural Scanner Cloak of Protection Improved Light Armor Plating Improved Light Armor Plating Improved Light Armor Plating Improved Light Armor Plating Hacking Suite High-powered Shotgun Rocket Launcher Mace Maul Heavy Hammer Peak State ------------ > --- POWER ------------ Cooled Ion Engine > --- PROPULSION ------- Aluminum Leg Aluminum Leg Titanium Leg Improved Carbon-fiber Leg Improved Carbon-fiber Leg > --- UTILITY ---------- Large Storage Unit Melee Analysis Suite > --- WEAPON ----------- Mace Heavy Hammer Katana > --- INVENTORY -------- Improved Aluminum Leg Structural Scanner Cloak of Protection Core Shielding Light Armor Plating Hacking Suite High-powered Shotgun Rocket Launcher Mace Maul Katana Katana [Rating: 30] Favorites ----------- Power Cooled Ion Engine Engine Cooled Ion Engine Power Core Light Nuclear Core Propulsion Aluminum Leg Treads Light Treads Leg Aluminum Leg Utility Large Storage Unit Device Structural Scanner Storage Large Storage Unit Processor Melee Analysis Suite Protection Core Shielding Weapon Enhanced Autogun Energy Gun Small Laser Ballistic Gun Enhanced Autogun Launcher Rocket Launcher Impact Weapon Heavy Hammer Slashing Weapon Katana Build | -11 -10 -10 -9 -9 -9 -8 -8 -8 -8 ------- Run | Yrd Mat Min Mat Min Exi Min Mat Gar Mat Slots Evolved 4 | . . . 2 . . . 2 . . Power . | . . . . . . . . . . Propulsion 3 | . . . 2 . . . 1 . . Utility . | . . . . . . . . . . Weapon 1 | . . . . . . . 1 . . Parts Attached 66 | 6 5 3 12 5 . . 17 9 9 Power 8 | 1 . 1 3 . . . 1 1 1 Engine 6 | 1 . 1 1 . . . 1 1 1 Core 2 | . . . 2 . . . . . . Reactor . | . . . . . . . . . . Propulsion 28 | 2 . 2 5 3 . . 7 4 5 Treads 5 | 2 . . . . . . . . 3 Leg 23 | . . 2 5 3 . . 7 4 2 Wheel . | . . . . . . . . . . Hover . | . . . . . . . . . . Flight . | . . . . . . . . . . Utility 11 | 1 3 . 1 1 . . 2 2 1 Device 1 | . . . . . . . 1 . . Storage 3 | 1 2 . . . . . . . . Processor 1 | . . . . . . . . 1 . Hackware . | . . . . . . . . . . Protection 6 | . 1 . 1 1 . . 1 1 1 Artifact . | . . . . . . . . . . Weapon 19 | 2 2 . 3 1 . . 7 2 2 Energy Gun 2 | 2 . . . . . . . . . Energy Cannon . | . . . . . . . . . . Ballistic Gun 6 | . 2 . 3 . . . 1 . . Ballistic Cannon . | . . . . . . . . . . Launcher 2 | . . . . 1 . . 1 . . Special Weapon . | . . . . . . . . . . Impact Weapon 6 | . . . . . . . 4 1 1 Slashing Weapon 3 | . . . . . . . 1 1 1 Piercing Weapon . | . . . . . . . . . . Special Melee Weapon . | . . . . . . . . . . Unidentified Prototypes 2 | . . . 2 . . . . . . Parts Lost 17 | . . 1 1 . . . 1 11 3 Power 3 | . . 1 . . . . . 1 1 Propulsion 8 | . . . . . . . 1 6 1 Utility 2 | . . . 1 . . . . 1 . Weapon 4 | . . . . . . . . 3 1 Highest Loss Streak 3 | . . 1 1 . . . 1 3 3 To Critical Strikes . | . . . . . . . . . . Average Backups 13 | 1 9 9 13 15 15 15 14 13 14 Power . | . 1 . 1 1 1 1 1 . . Propulsion 3 | . 3 4 4 3 3 3 2 2 2 Utility 3 | . . 1 1 3 4 5 4 4 6 Weapon 5 | . 3 4 5 6 6 6 6 4 5 Tool/Special . | . . . . . . . . . . Unused Backups 19 | . 2 . 2 3 1 . 2 . 9 Power . | . . . . . . . . . . Propulsion 2 | . . . 2 . . . . . . Utility 8 | . . . . . . . 1 . 7 Weapon 8 | . 2 . . 2 1 . 1 . 2 Tool/Special 1 | . . . . 1 . . . . . Average Slot Usage (%) 98 | . 91 98 99 100 100 100 99 97 99 Engine 9 | . 14 13 6 11 11 11 9 9 8 Treads 8 | . 28 20 . . . . . . 23 Leg 32 | . . 7 43 44 44 44 44 42 20 Storage 10 | . 14 14 11 11 11 11 9 9 9 Protection 8 | . 6 14 10 11 11 11 9 7 5 Ballistic Gun 13 | . 23 28 22 21 22 22 12 . . Impact Weapon 8 | . . . . . . . 9 21 18 Slashing Weapon 2 | . . . . . . . 4 4 8 Peak Build Rating 30 | 6 10 10 20 22 23 23 28 29 30 Average Rating 20 | 4 9 9 16 20 22 23 25 27 27 On Entrance 17 | . 6 10 10 20 22 23 23 27 29 Avg Prop Armor Cover (%) 9 | . . . . . . . . . 9 Naked Turns . | . . . . . . . . . . Heaviest Build 40 | 13 34 34 35 37 37 37 40 39 37 Greatest Support 76 | 40 40 40 43 48 48 48 74 76 73 Greatest Overweight (x) 3 | . . 3 . . . . . . 1 Average Overweight (x) . | . . . . . . . . . . Largest Inventory Capacity 15 | 8 15 15 15 15 15 15 15 15 15 Average Capacity 14 | 6 10 15 15 15 15 15 15 15 15 Most Carried 15 | 4 10 10 15 15 15 15 15 15 15 Average Carried 13 | 1 9 9 13 14 14 15 14 13 14 Final Capacity 15 | 8 15 15 15 15 15 15 15 15 15 Final Carried 15 | 4 10 9 15 15 15 15 15 13 15 Class Distribution -------------------- 65% | Mutant 22% | Scavenger-Mutant 7% | Scavenger-Gladiator 3% | Skirmisher Dominant Class ---------------- Mutant | -10/Materials Mutant | -10/Mines Scavenger-Mutant | -9/Materials Mutant | -9/Mines Mutant | -9/Exiles Mutant | -8/Mines Skirmisher | -8/Materials Mutant | -8/Garrison Scavenger-Mutant | -8/Materials Resources | -11 -10 -10 -9 -9 -9 -8 -8 -8 -8 ----------- Run | Yrd Mat Min Mat Min Exi Min Mat Gar Mat Matter Collected 3026 | 74 318 109 1058 316 . 96 438 454 163 Remotely . | . . . . . . . . . . Salvage Created 4282 | . 394 112 1319 335 . 184 582 613 743 Parts 249 | . 21 9 73 23 . 11 44 33 35 Haulers Intercepted 6 | . 1 . 5 . . . . . . Recyclers Shooed 5 | . 2 . 2 1 . . . . . Parts Field Recycled . | . . . . . . . . . . Retrieved Matter . | . . . . . . . . . . Parts Self-Destructed . | . . . . . . . . . . Prevented . | . . . . . . . . . . Parts Restored . | . . . . . . . . . . Kills | -11 -10 -10 -9 -9 -9 -8 -8 -8 -8 ------- Run | Yrd Mat Min Mat Min Exi Min Mat Gar Mat Combat Hostiles Destroyed 88 | . 6 1 17 8 . 3 13 27 13 Melee 18 | . . . . . . . 3 6 9 Guns 41 | . 6 1 17 7 . 3 7 . . AOE 27 | . . . . 1 . . 3 20 3 Classes Destroyed 15 | . 6 1 4 . . 2 . 2 . Worker 12 | . . 2 3 3 . . 2 . 2 Builder 5 | . 1 . 1 . . . 2 . 1 Tunneler 1 | . . . . . . 1 . . . Hauler 6 | . 1 . 5 . . . . . . Recycler 6 | . 1 . 3 . . . . . 2 Mechanic 1 | . . . 1 . . . . . . Operator 1 | . . . 1 . . . . . . Watcher 3 | . 2 . . . . . . . 1 Swarmer 27 | . 3 . 3 1 . . 4 13 3 Grunt 42 | . 3 2 11 4 . 2 3 11 6 Brawler 1 | . . . . . . 1 . . . Duelist 2 | . . . 1 1 . . . . . Sentry 15 | . . . 3 2 . . 6 . 4 Specialist 1 | . . . . . . . . 1 . Hunter 1 | . . . . . . . . 1 . Savage 1 | . . . . . . . . 1 . Best Kill Streak 8 | . 3 2 7 4 . 3 4 8 5 Combat Bots Only 8 | . 3 1 6 3 . 3 4 8 3 Max Kills in Single Turn 4 | . 2 1 2 2 . 1 1 4 3 Gunslinging 1 | . 1 . 1 . . . . . . Exploded 4 | . . . . 1 . . 1 4 3 Melee 1 | . . . . . . . 1 1 1 Uniques/NPCs Destroyed . | . . . . . . . . . . Combat | -11 -10 -10 -9 -9 -9 -8 -8 -8 -8 -------- Run | Yrd Mat Min Mat Min Exi Min Mat Gar Mat Hostile Shots Fired 395 | . 35 19 54 33 . 14 43 146 51 Missed 117 | . 13 8 26 11 . 1 12 30 16 Hits 278 | . 22 11 28 22 . 13 31 116 35 Melee 1 | . . . . . . . . 1 . Projectile 277 | . 22 11 28 22 . 13 31 115 35 Critical Strikes 7 | . . 1 1 . . 1 . 4 . Actively Blocked 1 | . . . . . . . . 1 . Damage Taken 3970 | . 213 160 346 290 . 211 450 1768 532 Core 665 | . 56 34 56 46 . 14 43 304 112 Absorbed by Shields 6 | . . . . . . . . 6 . Redirected to Shielding 66 | . . . 5 9 . . 9 43 . Ignored by Resistances 102 | . . . . . . . . 102 . Core Remaining (%) 78 | 100 . 64 . . . 71 . . . Volleys Fired 223 | . 35 11 89 26 . 12 24 24 2 Largest 3 | . 2 2 2 2 . 2 3 1 1 Hottest 80 | . 80 46 50 50 . 50 75 33 33 Shots Fired 432 | . 70 22 178 50 . 24 62 24 2 Gun 399 | . 70 22 178 48 . 24 57 . . Cannon . | . . . . . . . . . . Launcher 33 | . . . . 2 . . 5 24 2 Special . | . . . . . . . . . . Kinetic 393 | . 64 22 178 48 . 24 57 . . Thermal 3 | . 3 . . . . . . . . Explosive 33 | . . . . 2 . . 5 24 2 Electromagnetic 3 | . 3 . . . . . . . . Robot Hit Streak 11 | . 9 2 10 10 . 8 11 5 1 Robot Miss Streak 6 | . 4 5 6 4 . 2 4 4 5 Penetration Max . | . . . . . . . . . . Secondary Targets 8 | . 2 . 3 1 . 1 1 . . Max Gunslinging Chain 1 | . 1 . 1 1 . 1 1 . . Shots Hit Robots 327 | . 35 9 104 27 . 17 48 42 45 Core Hits 172 | . 15 5 42 21 . 7 24 42 16 Critical Kills 4 | . . . 2 . . . . . 2 Critical Parts Destroyed 7 | . 1 . 1 . . . . 3 2 Critical Strikes 15 | . 1 . 3 . . . 2 4 5 Destroy 5 | . 1 . 3 . . . 1 . . Smash 7 | . . . . . . . . 3 4 Sever 3 | . . . . . . . 1 1 1 Melee Attacks 139 | . . . . . . . 12 69 58 Impact 69 | . . . . . . . 3 43 23 Slashing 70 | . . . . . . . 9 26 35 Piercing . | . . . . . . . . . . Sneak Attacks 10 | . . . . . . . 3 . 7 Combat Hostiles 1 | . . . . . . . . . 1 Follow-up Attacks 17 | . . . . . . . . 7 10 Damage Inflicted 9487 | . 546 204 1771 764 . 302 1199 2835 1866 Guns 4014 | . 546 204 1765 491 . 302 706 . . Cannons . | . . . . . . . . . . Explosions 2258 | . . . . 259 . . 193 1562 244 Melee 3195 | . . . . . . . 300 1273 1622 Ramming 20 | . . . 6 14 . . . . . Kinetic 3990 | . 522 204 1765 491 . 302 706 . . Thermal 24 | . 24 . . . . . . . . Explosive 2258 | . . . . 259 . . 193 1562 244 Electromagnetic . | . . . . . . . . . . Impact 1230 | . . . . . . . . 712 518 Slashing 1965 | . . . . . . . 300 561 1104 Piercing . | . . . . . . . . . . Highest Corruption 5 | . 1 1 . . . . . 5 5 Average Corruption 4 | . 1 1 . . . . . 4 5 Corruption Purged . | . . . . . . . . . . Corruption Blocked . | . . . . . . . . . . Effects 24 | . 1 1 . . . . . 4 18 Message Errors 3 | . . . . . . . . . 3 Matter Fused 2 | . . . . . . . . 1 1 Heat Flow Errors 4 | . . . . . . . . 1 3 Energy Discharges 5 | . . 1 . . . . . . 4 Parts Rejected 1 | . . . . . . . . . 1 Parts Fused 2 | . . . . . . . . . 2 Data Loss (minor) 5 | . . . . . . . . 2 3 Data Loss (major) 2 | . 1 . . . . . . . 1 Overload Shots . | . . . . . . . . . . Overflow Damage 417 | . . . . 5 . . 18 223 171 Projectiles . | . . . . . . . . . . Explosions 26 | . . . . 5 . . . 21 . Melee 391 | . . . . . . . 18 202 171 Knockbacks 4 | . . . . 1 . . . 2 1 Impact 4 | . . . . 1 . . . 2 1 Kinetic . | . . . . . . . . . . Secondary . | . . . . . . . . . . Self-Inflicted Damage 70 | . . . . . . . 40 30 . Shots 2 | . . . . . . . 1 1 . Rammed . | . . . . . . . . . . Targets Rammed 2 | . . . 1 1 . . . . . Kicked 2 | . . . 1 1 . . . . . Crushed . | . . . . . . . . . . Highest Temperature 262 | . 46 29 76 44 . 149 156 130 262 Average Temperature 30 | . 12 10 18 13 . 69 58 47 105 Received Heat Transfer 1380 | . 60 87 171 162 . 135 117 396 252 Siege Activations . | . . . . . . . . . . Martial Activations . | . . . . . . . . . . Shielding Activations . | . . . . . . . . . . Robots Disrupted . | . . . . . . . . . . Combat Hostiles . | . . . . . . . . . . Robots Corrupted 3 | . . . . . . . . 1 2 Combat Hostiles 2 | . . . . . . . . 1 1 Parts Fried 6 | . . . . . . . . 4 2 Impact Corruptions 10 | . . . . . . . . 6 4 Robots Melted . | . . . . . . . . . . Combat Hostiles . | . . . . . . . . . . Parts Melted 1 | . . . . 1 . . . . . Heat Transferred 50 | . 50 . . . . . . . . Parts Sabotaged . | . . . . . . . . . . Parts Stolen . | . . . . . . . . . . Parts Stripped . | . . . . . . . . . . Power Chain Reactions . | . . . . . . . . . . Alert | -11 -10 -10 -9 -9 -9 -8 -8 -8 -8 ------- Run | Yrd Mat Min Mat Min Exi Min Mat Gar Mat Maximum Alert Level 4 | . . . 1 1 . . 1 4 3 Low Security (%) 51 | 100 100 100 56 84 . 100 58 1 16 Level 1 22 | . . . 43 15 . . 41 14 34 Level 2 11 | . . . . . . . . 13 46 Level 3 14 | . . . . . . . . 70 2 Level 4 . | . . . . . . . . . . Level 5 . | . . . . . . . . . . High Security . | . . . . . . . . . . Max Security . | . . . . . . . . . . Peak Influence 1188 | . 104 102 313 226 . 60 319 1188 710 Initial 579 | . . . 20 117 . . . 186 579 Average 298 | . 27 34 153 107 . 27 168 808 419 Influence Increases 3661 | . 197 147 718 365 . 75 531 1192 436 Destroy 0b10 Robot/C 2000 | . 120 100 380 220 . 60 260 600 260 Destroy 0b10 Robot/NC 185 | . 25 10 80 15 . 5 20 . 30 Destroy Leader 372 | . 36 20 104 30 . 10 80 20 72 Allied During Kill 59 | . . 17 12 9 . . . 21 . Successful Hack 19 | . . . . . . . 10 . 9 Select Force Hacks 60 | . . . 60 . . . . . . Disable Machine 165 | . . . 30 15 . . 30 75 15 Anti-Garrison Action 350 | . . . . . . . . 350 . Destroy Structure 166 | . 1 . 7 16 . . 26 96 20 Lose Combat Pursuer 285 | . 15 . 45 60 . . 105 30 30 Influence Decreases 3434 | . 197 95 469 526 140 75 244 291 1397 Entered New Map 1066 | . . . 32 184 140 . . 101 609 Time Decay 1778 | . 197 85 407 322 . 75 234 . 458 Lost Part 170 | . . 10 10 . . . 10 110 30 Lost Ally 120 | . . . 20 20 . . . 80 . Purge Threat 300 | . . . . . . . . . 300 Squads Dispatched 14 | . 1 . 4 1 . . 2 . 6 Investigation 6 | . . . 2 . . . 1 . 3 Extermination . | . . . . . . . . . . Reinforcement 7 | . 1 . 2 . . . 1 . 3 Assault 1 | . . . . 1 . . . . . Garrison . | . . . . . . . . . . Intercept . | . . . . . . . . . . Searches Triggered . | . . . . . . . . . . Construction Impeded 1 | . . . . . . . . . 1 Haulers Reinforced . | . . . . . . . . . . Active Scanning Responses . | . . . . . . . . . . Cargo Convoy Interrupts . | . . . . . . . . . . Stealth | -11 -10 -10 -9 -9 -9 -8 -8 -8 -8 --------- Run | Yrd Mat Min Mat Min Exi Min Mat Gar Mat Distress Signals 9 | . 2 . 3 . . . 1 . 3 Communications Jammed . | . . . . . . . . . . Distress Signals . | . . . . . . . . . . Times Spotted 135 | . 10 5 33 15 . 3 18 30 21 Peak Tracking Total 7 | . 3 3 5 4 . 3 7 5 5 Tactical Retreats 14 | . 1 . 3 3 . . 3 2 2 Traps | -11 -10 -10 -9 -9 -9 -8 -8 -8 -8 ------- Run | Yrd Mat Min Mat Min Exi Min Mat Gar Mat Traps Triggered 6 | . 1 . . . . . 1 3 1 Indirectly . | . . . . . . . . . . Trap Hack Attempts . | . . . . . . . . . . Triggered . | . . . . . . . . . . Disarmed . | . . . . . . . . . . Reprogrammed . | . . . . . . . . . . Reused . | . . . . . . . . . . Traps Extracted . | . . . . . . . . . . Installed . | . . . . . . . . . . Triggered . | . . . . . . . . . . Machines | -11 -10 -10 -9 -9 -9 -8 -8 -8 -8 ---------- Run | Yrd Mat Min Mat Min Exi Min Mat Gar Mat Machines Disabled 19 | . 2 . 2 3 . . 2 9 1 Max in Single Turn 2 | . 2 . 1 1 . . 1 2 1 Garrison Relay 4 | . . . . . . . . 4 . Machines Repaired . | . . . . . . . . . . Machines Dismantled . | . . . . . . . . . . Machines Sabotaged . | . . . . . . . . . . Overloaded Fab Kills . | . . . . . . . . . . Hacking | -11 -10 -10 -9 -9 -9 -8 -8 -8 -8 --------- Run | Yrd Mat Min Mat Min Exi Min Mat Gar Mat Machines Accessed 15 | . 2 . 2 . 1 . 4 3 3 Terminals 10 | . 2 . . . . . 2 3 3 Fabricators . | . . . . . . . . . . Repair Stations . | . . . . . . . . . . Recycling Units 2 | . . . 2 . . . . . . Scanalyzers 1 | . . . . . . . 1 . . Garrison Access 1 | . . . . . . . 1 . . Total Hacks 32 | . 3 . 2 . 1 . 7 7 12 Successful 13 | . 1 . 2 . 1 . 4 1 4 Failed 18 | . 2 . . . . . 2 6 8 Catastrophic 1 | . . . . . . . . 1 . Database Lockouts 1 | . . . . . . . 1 . . Manual 15 | . 3 . 2 . 1 . 3 . 6 Terminals 26 | . 3 . . . . . 4 7 12 Fabricators . | . . . . . . . . . . Repair Stations . | . . . . . . . . . . Recycling Units 2 | . . . 2 . . . . . . Scanalyzers 2 | . . . . . . . 2 . . Garrison Access 1 | . . . . . . . 1 . . Terminal Hacks 5 | . . . . . 1 . 1 1 2 Robot Analysis 1 | . . . . . . . 1 . . Emergency Access Points 1 | . . . . . . . . 1 . Unreport Threat 2 | . . . . . . . . . 2 Proto ID Catalog 1 | . . . . . 1 . . . . Fabricator Hacks . | . . . . . . . . . . Repair Station Hacks . | . . . . . . . . . . Recycling Unit Hacks . | . . . . . . . . . . Scanalyzer 1 | . . . . . . . 1 . . Retrieve Study 1 | . . . . . . . 1 . . Garrison Access Hacks 1 | . . . . . . . 1 . . Unlock Access 1 | . . . . . . . 1 . . Unauthorized Hacks 6 | . 1 . 2 . . . 1 . 2 Terminals 4 | . 1 . . . . . 1 . 2 Botnet 4 | . 1 . . . . . 1 . 2 Fabricators . | . . . . . . . . . . Repair Stations . | . . . . . . . . . . Recycling Units 2 | . . . 2 . . . . . . Tunnel 2 | . . . 2 . . . . . . Scanalyzers . | . . . . . . . . . . Garrison Access . | . . . . . . . . . . Data Cores Recovered . | . . . . . . . . . . Used . | . . . . . . . . . . Hacking Detections 9 | . 1 . . . . . 3 3 2 Full Trace Events 3 | . . . . . . . . 1 2 Feedback Events . | . . . . . . . . . . Feedback Blocked . | . . . . . . . . . . Robot Schematics Acquired . | . . . . . . . . . . Robots Built . | . . . . . . . . . . Authchips . | . . . . . . . . . . Time . | . . . . . . . . . . Total Robot Build Rating . | . . . . . . . . . . Part Schematics Acquired . | . . . . . . . . . . Parts Built . | . . . . . . . . . . Authchips . | . . . . . . . . . . Time . | . . . . . . . . . . Total Part Build Rating . | . . . . . . . . . . Part Studies Acquired 1 | . . . . . . . 1 . . Parts Repaired . | . . . . . . . . . . Time . | . . . . . . . . . . Parts Recycled . | . . . . . . . . . . Recycled Matter . | . . . . . . . . . . Retrieved Matter . | . . . . . . . . . . Retrieved Components . | . . . . . . . . . . Parts Scanalyzed . | . . . . . . . . . . Part Schematics Acquired . | . . . . . . . . . . Parts Damaged . | . . . . . . . . . . Bothacking | -11 -10 -10 -9 -9 -9 -8 -8 -8 -8 ------------ Run | Yrd Mat Min Mat Min Exi Min Mat Gar Mat Used RIF Installer . | . . . . . . . . . . Robots Hacked . | . . . . . . . . . . Non-combat . | . . . . . . . . . . Combat . | . . . . . . . . . . Robot Hacks Applied . | . . . . . . . . . . Relay Couplers Released 16 | . . . . . . . . 16 . Machine Destruction 16 | . . . . . . . . 16 . Fabnet Peak Effective % . | . . . . . . . . . . Robots Rewired 3 | . . . . . . . . 3 . Allies Hacked 2 | . . . . . . . . 2 . Hacks Repelled . | . . . . . . . . . . Allies | -11 -10 -10 -9 -9 -9 -8 -8 -8 -8 -------- Run | Yrd Mat Min Mat Min Exi Min Mat Gar Mat Total Allies 10 | . . 3 . 2 . . . 5 . Largest Group 5 | . . 3 2 1 . . . 5 . Highest-Rated Group 105 | . . 40 32 31 . . . 105 . Highest-Rated Ally 31 | . . 16 16 31 . . . 31 . Initial Warlord ECA Mod 8 | . . . . . . . . . 8 Total Orders . | . . . . . . . . . . Ally Attacks 85 | . . 23 24 21 . . . 17 . Total Damage 1101 | . . 258 202 225 . . . 416 . Kills 14 | . . 4 4 3 . . . 3 . Allies Corrupted . | . . . . . . . . . . Allies Melted . | . . . . . . . . . . Intel | -11 -10 -10 -9 -9 -9 -8 -8 -8 -8 ------- Run | Yrd Mat Min Mat Min Exi Min Mat Gar Mat Active Infowar (turns) 18 | . . . . . . . 1 17 . Structural 18 | . . . . . . . 1 17 . Robot Analysis Total 1 | . . . . . . . 1 . . Derelict Logs Recovered 2 | . . 1 . 1 . . . . . Drone Launches . | . . . . . . . . . . Drone Recoveries . | . . . . . . . . . . Exploration | -11 -10 -10 -9 -9 -9 -8 -8 -8 -8 ------------- Run | Yrd Mat Min Mat Min Exi Min Mat Gar Mat Turns Passed 6398 | 69 805 289 1015 886 258 174 554 1206 1142 Spaces Moved 3811 | 39 428 150 578 670 214 113 298 785 536 Core 5 | 5 . . . . . . . . . Treads 1038 | 34 428 109 . . . . . . 467 Legs 2768 | . . 41 578 670 214 113 298 785 69 Wheels . | . . . . . . . . . . Hover . | . . . . . . . . . . Flight . | . . . . . . . . . . Fastest Speed 50 | 50 160 160 120 120 120 120 108 115 110 Average Speed 131 | 145 160 169 120 120 120 120 115 122 150 Slowest Speed 330 | 160 160 330 120 120 120 120 123 130 225 Overloaded Moves . | . . . . . . . . . . Propulsion Burnouts . | . . . . . . . . . . Robots Hopped . | . . . . . . . . . . Potential Cave-ins . | . . . . . . . . . . Cave-ins Triggered . | . . . . . . . . . . Exploration Rate (%) 50 | 3 64 48 47 99 60 26 33 75 50 Regions Visited 9 Branch Regions 4 Pre-discovered Areas 3 | . . 1 2 . . . . . . Known Exits Taken 1 | . . . . . . . 1 . . Unknown Exits Taken 7 | 1 1 1 1 1 1 1 . . . Scrap Searched 3 | . . 1 . 2 . . . . . Spaces Dug 12 | . . . . . . . 6 2 4 Terrain Destroyed 130 | . . . . 17 . . 32 64 17 Melee 8 | . . . . . . . 2 2 4 Projectile . | . . . . . . . . . . AOE 122 | . . . . 17 . . 30 62 13 Terrain Rammed . | . . . . . . . . . . Walls Destroyed . | . . . . . . . . . . Machines Disabled . | . . . . . . . . . . Actions | -11 -10 -10 -9 -9 -9 -8 -8 -8 -8 --------- Run | Yrd Mat Min Mat Min Exi Min Mat Gar Mat Total 4743 | 48 493 168 780 725 215 137 469 909 799 Wait 413 | . 11 3 79 9 . 13 102 7 189 Move 3803 | 38 427 149 577 669 213 112 298 784 536 Hop . | . . . . . . . . . . Pick Up 48 | 4 9 . 11 5 1 . 6 4 8 Fast Attach 27 | 6 3 2 4 2 . . 2 4 4 Attach 20 | . 1 1 3 . . . 4 8 3 Detach 1 | . . . . . . . . 1 . Swap 39 | . 1 . 5 4 . . 13 9 7 Drop 49 | . 6 2 11 9 1 . 11 1 8 Fire 223 | . 35 11 89 26 . 12 24 24 2 Melee 103 | . . . . . . . 9 52 42 Ram . | . . . . . . . . . . Kick 2 | . . . 1 1 . . . . . Crush . | . . . . . . . . . . Escape Stasis 7 | . . . . . . . . 7 . Rewire 8 | . . . . . . . . 8 . Trap . | . . . . . . . . . . Miscellaneous . | . . . . . . . . . . Route ------- -11/Scrapyard -10/Materials (discovered 3 exits: *Mat x2 / [*Min]) -10/Mines -9/Materials -9/Mines (discovered 3 exits: *Mat x2 / *Exi) -9/Exiles -8/Mines -8/Materials (discovered 2 exits: Fac / Gar) -8/Garrison (discovered 2 exits: *Mat x2) -8/Materials (discovered 1 exit: *Fac) History --------- Turn | Location | Event 51 | -11/Scrapyard | Discovered new exit (range 12) 70 | -11/Scrapyard | Entered Materials 294 | -10/Materials | Discovered new exit (range 5) 334 | -10/Materials | Build established: Mutant 402 | -10/Materials | Discovered new exit (range 3) 822 | -10/Materials | Discovered new exit (range 8) 875 | -10/Materials | Entered Mines 938 | -10/Mines | Assisted by bots powering up and referring to "LRC-V3" 1040 | -10/Mines | Learned location of Mines (-8) 1153 | -10/Mines | Discovered new exit (range 5) 1164 | -10/Mines | Entered Materials 1164 | -9/Materials | Accompanied by 2 allies 1164 | -9/Materials | Evolved 2 slots: Propulsion x2 2061 | -9/Materials | Build established: Scavenger-Mutant 2070 | -9/Materials | Discovered new exit (range 9) 2179 | -9/Materials | Entered Mines 2182 | -9/Mines | Received a Mining Laser from a helpful Derelict 2223 | -9/Mines | Received a Rocket Launcher from a helpful Derelict 2403 | -9/Mines | Learned location of 1 exit from Materials 2457 | -9/Mines | Build established: Mutant 2500 | -9/Mines | Met a Derelict testing a Signal Generator 2777 | -9/Mines | Discovered new exit (range 8) 2839 | -9/Mines | Discovered new exit (range 5) 3060 | -9/Mines | Deemed a non-threat by the Exiles lab entrance 3060 | -9/Mines | Discovered new exit (range 5) 3065 | -9/Mines | Entered Exiles 3093 | -9/Exiles | Met 8R-AWN 3115 | -9/Exiles | Met EX-HEX 3149 | -9/Exiles | Met EX-BIN 3164 | -9/Exiles | Aligned with FarCom system 3165 | -9/Exiles | Given EX-Vault access code 3194 | -9/Exiles | Opened EX-Vault 3204 | -9/Exiles | Found Cloak of Protection 3229 | -9/Exiles | Warned to stay clear of 0b10 Research branches 3244 | -9/Exiles | Exiles lab attacked by MAIN.C 3307 | -9/Exiles | Discovered new exit (range 14) 3323 | -9/Exiles | Left Exiles lab with Cloak of Protection 3323 | -9/Exiles | Entered Mines 3478 | -8/Mines | Discovered new exit (range 3) 3497 | -8/Mines | Entered Materials 3497 | -8/Materials | Evolved 2 slots: Propulsion x1, Weapon x1 3498 | -8/Materials | Identified exit to Factory 3567 | -8/Materials | Central database locked down 4051 | -8/Materials | Identified exit to Garrison 4051 | -8/Materials | Entered Garrison 4063 | -8/Garrison | Triggered checkpoint 4240 | -8/Garrison | Triggered checkpoint 4283 | -8/Garrison | Triggered checkpoint 4369 | -8/Garrison | Triggered checkpoint 4392 | -8/Garrison | Triggered checkpoint 4398 | -8/Garrison | Triggered checkpoint 4424 | -8/Garrison | Destroyed 8 combat bots 4435 | -8/Garrison | Triggered checkpoint 4459 | -8/Garrison | Garrison Relay disabled 4587 | -8/Garrison | Discovered new exit (range 11) 4597 | -8/Garrison | Triggered checkpoint 4605 | -8/Garrison | Triggered checkpoint 4620 | -8/Garrison | Garrison Relay disabled 4954 | -8/Garrison | Rescued a captive Derelict 4956 | -8/Garrison | Rescued a captive Derelict 5017 | -8/Garrison | Discovered new exit (range 10) 5032 | -8/Garrison | Core integrity fell below 50% 5035 | -8/Garrison | P-60 Hacker assimilated allied EE-B5T(b) 5059 | -8/Garrison | Lost 3 parts (2n1u) 5077 | -8/Garrison | Lost 4 allies 5130 | -8/Garrison | Lost 3 parts (2n1w) 5154 | -8/Garrison | Garrison Relay disabled 5257 | -8/Garrison | Entered Materials 5421 | -8/Materials | Build established: Scavenger-Gladiator 5548 | -8/Materials | Lost 3 parts (1p1n1w) 5784 | -8/Materials | Discovered exit to Factory (range 16) 5944 | -8/Materials | Build established: Scavenger-Mutant 6396 | -8/Materials | Core integrity fell below 20% 6399 | -8/Materials | Self-destructed Last Messages --------------- Plating. 06214_ K-01 Serf collects debris. 06231_ System corrupted: Energy discharge (-84). 06235_ U-05 Engineer builds a Wall. 06241_ ALERT: Suspicious intruders detected, dispatching Specialist reinforcements to area. 06247_ Y-45 Defender Lgt. Armor Plating severed. 06254_ Maul follow-up attack on Y-45 Defender. 06254_ Katana follow-up attack on Y-45 Defender. 06257_ Y-45 Defender destroyed. 06299_ U-05 Engineer works on Material Processor. 06324_ E9Q3II9G9 06349_ System corrupted: Adv. Treads fused. 06351_ U-05 Engineer works on Material Processor. 06388_ Katana follow-up attack on Y-45 Defender. 06395_ Atomic Centrifuge disabled. Map ----- +----------------------------------------------------+ | ?????????????????#! #????????????????????????? | | ?????????????????# #????????????????????????? | | ?????????????##### "T" #????????????????????????? | | ?????????????#|| #/ """ #????????????????????????? | | ?????????????#|| # #????????????????????????? | | ?????????????#[[ #+##+##############?????????????? | | ?????????????#[[ "T" #?????????????? | | ?????????????#!! #?????????????? | | ?????????????#!! #?????????????? | | ?????????????####### #?????????????? | | ???????????????????# ! """ #?????????????? | | ???????????????????# """"" #?????????????? | | ???????????????????# """"" ##????????????? | | ???????????????????# """ ???????????? | | ???????????????????# [ ??????????? | | ???????????????????# ?????????? | | ???????????????????# ###############?????????? | | ?????????????######## #???????????????????????? | | ?????????????# # #???????????????????????? | | ?????????????# # #???????????#######?????? | | ?????????????# """ + ############# #????? | | ?????????????# """ # !% #???? | | ?????????????# """ # #??? | | ?????????????# ?# #??# | | ?????????????##############+########## ### | | ?????????????# ?#Y@ #?????####+##### | | ?????????????# ## "" #?????# # | | ?????????????#[[ ##= """ ####### """ # | | ?????????????#[[ """ ## """ + + """x #? | | ????#######??#[[ R" ## # ##### """ #?### | | ????# ?# """ ?# # #???# """ #???? | | ????# ??? ???####+### #???# """ #???? | | ????#] ??##+######### ### #???# !#???? | | ????# ]] ### #???# =%##### | | ????# ]* + %% #???# !|[+ %% | | ????# ### #???##########!### | | ????# ??# ############ ##############%#?? | | ????# ??## ##########?# =*%=#?? | | ????# ! ??# #[ #?# w ##########?? | | ???#######+#### T" # !! #?# #??????????? | | ???# "T" " + = ! #?# """ #??????????? | | ???# ### #########?# """ #??????????? | | #??# #?# #?????????# """ #??????????? | | ?# #?### ###?????????# #??????????? | | ?# #???# ########????# #??????????? | | "" # ]#???# # **!#????# #??????????? | | "" # #???# # **!#????# !!! #??????????? | | "" + """ #???# #* *!!#????# !!! ]####???????? | | "" # ! """ #???#=+% #????# !! ## ???????? | | # """ #???### #????# ## #???????? | +----------------------------------------------------+ Best States ------------- Heat Dissipation 31 Energy Generation 14 Energy Capacity 280 Matter Stores 300 Matter Capacity 300 Sight Range 16 Terrain Scan Density 10 Armor Coverage 150 Resistance: EM 15 Core Shielding 20 Evasion (%) 55 Melee Accuracy 5 Recoil Reduction 3 Item Schematics ----------------- None Robot Schematics ------------------ None Fabricated ------------ Nothing Repaired ---------- Nothing Studied --------- Aluminum Leg | -8/Materials | Hacked Alien Tech Used ----------------- None Achievements -------------- None Challenges ------------ None Game ------ Seed PointyBeamObliterator Manual? 0 Play Time 00:34:29 Cumulative 416.2 hours Start 2026.07.04 @ 18:07:09 End 2026.07.04 @ 18:41:06 Sessions 2 Manual Loads 0 Difficulty Rogue Special Mode None Game No. 379 Rogue 379 Adventurer 0 Explorer 0 Win Type - Total 11 Types 7/0/2/1/0/0/0/0/0/1 Lore% 61 Gallery% 68 Achievement% 63 Wizard Run 0 Options --------- Layout 1 ASCII 0 Keyboard 0 Movement Mouse Keybinds 0 Fullscreen 2 Font 24/Smallcaps Map View 50x35 Zoom Use 17% Tactical HUD 1 Map Filters NONE Filters NONE Steam 1 RUN: 146aea83-ea3f-4589-9448-c1a33a40336b